bitfinex-derivatives/quotes_ETHF0:USTF0_20230105
["timestamp","ask_amount","ask_price","bid_price","bid_amount"]
[1672877901950,3.0073,1259.1,1258.9,2.95924973]
[1672877902158,3.0073,1259.1,1259.0,1.17926717]
[1672877902364,3.0073,1259.1,1258.9,2.95924973]
[1672877902788,3.0073,1259.1,1258.9,1.17926717]
[1672877904579,3.0073,1259.1,1258.8,2.95924973]
[1672877904775,3.0073,1258.9,1258.8,1.17926717]
[1672877904990,3.0073,1258.9,1258.7,3.0562781]
[1672877905832,3.0073,1258.9,1258.7,4.83626066]
[1672877906152,2.5,1258.8,1258.7,3.0562781]
[1672877906468,2.5,1258.8,1258.7,1.87701093]
[1672877912873,5.5073,1259.0,1258.7,1.87701093]
[1672877913085,5.5073,1259.0,1258.8,2.5]
[1672877913617,5.5073,1259.0,1258.7,4.37701093]
[1672877914244,5.5073,1259.0,1258.7,1.87701093]
[1672877916350,3.0073,1258.8,1258.7,1.87701093]
[1672877921083,3.0073,1258.8,1258.7,3.0562781]
[1672877922239,3.0073,1258.8,1258.7,1.87701093]
[1672877922445,3.0073,1258.8,1258.7,3.0562781]
[1672877923076,5.5073,1259.0,1258.7,3.0562781]
[1672877924449,3.0073,1258.8,1258.7,1.87701093]
[1672877925809,3.0073,1258.8,1258.7,1.17926717]
[1672877926126,3.0073,1258.8,1258.7,2.5]
[1672877926330,3.0073,1258.8,1258.7,3.67926717]
[1672877926541,3.0073,1258.8,1258.7,1.17926717]
[1672877929912,3.0073,1258.8,1258.7,2.95924973]
[1672877930120,3.0073,1258.8,1258.7,4.27998256]
[1672877930325,3.0073,1258.8,1258.7,1.77998256]
[1672877930540,3.0073,1258.8,1258.7,5.46427343]
[1672877930746,3.0073,1259.0,1258.7,5.46427343]
[1672877930960,5.5073,1259.2,1258.8,10.92305122]
[1672877931274,5.5073,1259.2,1258.9,2.96405122]
[1672877931486,5.5073,1259.2,1259.0,2.18406866]
[1672877931705,5.5073,1259.2,1259.1,2.5]
[1672877932326,3.0073,1259.2,1259.1,2.5]
[1672877932742,3.0073,1259.2,1259.0,2.18406866]
[1672877932957,3.0073,1259.2,1259.0,1.0]
[1672877934216,3.0073,1259.2,1259.0,11.92305122]
[1672877934641,3.0073,1259.2,1259.1,1.18406866]
[1672877935061,3.0073,1259.2,1259.0,14.93035122]
[1672877936105,3.0073,1259.2,1259.1,1.18406866]
[1672877936314,5.5073,1259.4,1259.1,1.18406866]
[1672877936942,5.5073,1259.4,1259.2,2.5]
[1672877937487,5.5073,1259.4,1259.0,10.14306866]
[1672877937790,3.0073,1259.2,1259.0,10.14306866]
[1672877938731,3.0073,1259.2,1258.9,13.42305122]
[1672877939263,3.0073,1259.2,1259.0,1.18406866]
[1672877940732,3.0073,1259.2,1258.9,13.42305122]
[1672877940944,3.0073,1259.2,1259.0,1.18406866]
[1672877941147,3.0073,1259.2,1258.9,13.42305122]
[1672877941352,1.5,1259.1,1258.9,5.46405122]
[1672877941562,1.5,1259.1,1258.9,3.68406866]
[1672877941988,1.5,1259.1,1258.9,5.46405122]
[1672877942624,1.5,1259.1,1258.9,2.96405122]
[1672877942836,1.5,1259.1,1258.9,1.18406866]
[1672877943360,3.0073,1259.0,1258.9,1.18406866]
[1672877946927,3.0073,1259.0,1258.8,15.92305122]
[1672877947563,3.0073,1259.0,1258.8,2.96405122]
[1672877947881,3.0073,1259.0,1258.8,1.18406866]
[1672877948084,3.0073,1259.0,1258.7,2.96405122]
[1672877948406,3.0073,1258.8,1258.7,1.18406866]
[1672877953345,3.0073,1258.8,1258.7,2.96405122]
[1672877953558,3.0073,1258.8,1258.7,2.96447671]
[1672877953759,3.0073,1258.8,1258.7,2.96444543]
[1672877953968,3.0073,1258.8,1258.7,1.77998256]
[1672877954184,3.0073,1258.8,1258.7,2.96444941]
[1672877954405,1.5,1259.1,1258.7,5.46444941]
[1672877954601,3.0073,1259.0,1258.8,2.96430885]
[1672877954815,3.0073,1259.0,1258.9,1.18432629]
[1672877955024,3.0073,1259.0,1258.9,2.5]
[1672877955448,3.0073,1259.0,1258.8,1.77998256]
[1672877955661,3.0073,1259.0,1258.7,6.61462272]
[1672877955972,3.0073,1259.0,1258.8,1.77998256]
[1672877959441,2.5,1258.9,1258.8,1.77998256]
[1672877960176,3.0073,1259.0,1258.8,1.77998256]
[1672877960798,1.5,1259.1,1258.8,1.77998256]
[1672877961019,1.5,1259.1,1258.8,4.11462272]
[1672877961225,1.5,1259.1,1258.9,4.27998256]
[1672877961750,1.5,1259.1,1258.9,2.5]
[1672877962172,1.5,1259.1,1258.9,4.27998256]
[1672877962699,1.5,1259.1,1258.9,2.5]
[1672877963012,1.5,1259.1,1258.9,4.27998256]
[1672877963223,1.5,1259.1,1258.9,1.77998256]
[1672877963536,3.0073,1259.0,1258.8,1.77998256]
[1672877963743,2.5,1258.9,1258.8,1.77998256]
[1672877966160,2.5,1258.9,1258.7,4.11462272]
[1672877966373,2.5,1258.9,1258.8,1.77998256]
[1672877966579,2.5,1258.9,1258.8,2.5]
[1672877967211,2.5,1258.9,1258.7,6.61462272]
[1672877967412,3.0073,1259.0,1258.8,2.5]
[1672877967621,3.0073,1259.0,1258.8,4.27998256]
[1672877970363,3.0073,1259.0,1258.8,6.61462272]
[1672877971527,3.0073,1259.0,1258.9,1.77998256]
[1672877971734,3.0073,1259.0,1258.8,6.61462272]
[1672877972781,2.5,1258.9,1258.8,6.61462272]
[1672877973309,2.5,1258.9,1258.8,4.83464016]
[1672877973519,3.0073,1259.0,1258.8,4.83464016]
[1672877973726,5.5073,1259.2,1258.9,1.7779486]
[1672877973934,5.5073,1259.3,1258.9,4.11258876]
[1672877974149,3.0073,1259.3,1259.0,4.2779486]
[1672877974468,3.0073,1259.3,1259.1,9.7369486]
[1672877974880,3.0073,1259.3,1259.1,12.07158876]
[1672877975091,3.0073,1259.3,1259.2,1.0]
[1672877976148,3.0073,1259.3,1259.1,1.7779486]
[1672877976886,3.0073,1259.5,1259.2,2.5]
[1672877977403,3.0073,1259.5,1259.2,10.459]
[1672877978249,2.5,1259.4,1259.2,10.459]
[1672877979723,5.5073,1259.4,1259.2,10.459]
[1672877980666,5.5073,1259.4,1259.2,7.959]
[1672877981300,5.5073,1259.4,1259.1,4.2779486]
[1672877981513,5.5073,1259.4,1259.1,12.2369486]
[1672877982449,2.5,1259.4,1259.1,12.2369486]
[1672877982771,2.5,1259.4,1259.1,14.57158876]
[1672877982982,5.5073,1259.4,1259.1,12.2369486]
[1672877984031,5.5073,1259.4,1259.1,4.2779486]
[1672877985299,5.5073,1259.4,1259.0,9.2779486]
[1672877988440,2.5,1259.4,1259.0,9.2779486]
[1672877988653,3.0073,1259.3,1259.0,9.2779486]
[1672877988972,2.5,1259.2,1259.0,9.2779486]
[1672877989173,3.0073,1259.3,1259.0,17.2369486]
[1672877989387,2.5,1259.4,1259.0,22.57888876]
[1672877989598,3.0073,1259.3,1259.2,2.5]
[1672877990432,2.5,1259.4,1259.2,2.5]
[1672877990856,3.0073,1259.3,1259.2,2.5]
[1672877991067,2.5,1259.4,1259.2,2.5]
[1672877991487,2.5,1259.4,1259.1,10.459]
[1672877991698,2.5,1259.4,1259.0,9.2779486]
[1672877991906,3.0073,1259.3,1259.0,9.2779486]
[1672877992226,2.5,1259.2,1259.0,9.2779486]
[1672877992857,3.0073,1259.3,1259.0,22.57888876]
[1672877993273,2.5,1259.4,1259.2,2.5]
[1672877995491,5.5073,1259.4,1259.2,2.5]
[1672877996752,3.0073,1259.4,1259.2,10.459]
[1672878000841,3.0073,1259.4,1259.2,7.959]
[1672878002732,3.0073,1259.4,1259.1,4.2779486]
[1672878002942,3.0073,1259.4,1259.1,12.2369486]
[1672878003157,3.0073,1259.4,1259.1,10.459]
[1672878003357,3.0073,1259.4,1259.0,7.2852486]
[1672878003568,3.0073,1259.2,1259.0,4.2779486]
[1672878003997,3.0073,1259.2,1259.0,12.2369486]
[1672878005041,2.5,1259.3,1259.0,12.2369486]
[1672878005251,5.5073,1259.3,1259.0,12.2369486]
[1672878005469,5.5073,1259.3,1259.0,1.7779486]
[1672878007047,5.5073,1259.3,1258.9,14.57158876]
[1672878007253,5.5073,1259.3,1259.0,4.2779486]
[1672878007574,5.5073,1259.3,1259.1,2.5]
[1672878007780,5.5073,1259.3,1259.0,4.2779486]
[1672878007990,3.0073,1259.1,1258.9,4.2779486]
[1672878008724,5.5073,1259.3,1258.9,4.2779486]
[1672878008933,5.5073,1259.3,1259.0,2.5]
[1672878009246,5.5073,1259.3,1259.0,4.2779486]
[1672878009566,5.5073,1259.3,1259.0,6.61258876]
[1672878009778,5.5073,1259.3,1259.0,4.2779486]
[1672878011459,5.5073,1259.3,1259.0,6.61258876]
[1672878011985,5.5073,1259.3,1259.0,14.57158876]
[1672878012403,5.5073,1259.3,1259.1,1.7779486]
[1672878012615,5.5073,1259.3,1259.2,2.5]
[1672878012929,5.5073,1259.3,1259.1,1.7779486]
[1672878012930,5.5073,1259.3,1259.0,14.57158876]
[1672878013349,5.5073,1259.3,1259.1,1.7779486]
[1672878014404,5.5073,1259.3,1259.0,14.57158876]
[1672878014613,5.5073,1259.3,1259.0,4.2779486]
[1672878015978,5.5073,1259.3,1259.0,12.2369486]
[1672878016190,5.5073,1259.3,1259.0,4.2779486]
[1672878017239,5.5073,1259.3,1259.0,12.2369486]
[1672878017454,3.0073,1259.1,1259.0,4.2779486]
[1672878017651,3.0073,1259.1,1259.0,1.7779486]
[1672878020707,2.5,1259.3,1259.0,1.7779486]
[1672878020918,3.0073,1259.1,1259.0,1.7779486]
[1672878021657,3.0073,1259.1,1258.9,14.57158876]
[1672878021972,3.0073,1259.1,1259.0,1.7779486]
[1672878025854,3.0073,1259.1,1258.9,6.61258876]
[1672878026288,3.0073,1259.1,1258.9,4.11258876]
[1672878026592,3.0073,1259.1,1258.8,1.7779486]
[1672878026803,3.0073,1258.9,1258.8,1.7779486]
[1672878027331,3.0073,1258.9,1258.7,6.61258876]
[1672878027541,3.0073,1258.9,1258.7,1.7779486]
[1672878027848,3.0073,1258.9,1258.7,6.61258876]
[1672878028065,3.0073,1258.9,1258.7,4.2779486]
[1672878028895,3.0073,1258.9,1258.7,6.61258876]
[1672878029109,3.0073,1258.9,1258.7,1.7779486]
[1672878029318,3.0073,1258.9,1258.7,4.2779486]
[1672878030374,3.0073,1258.9,1258.7,1.7779486]
[1672878030794,3.0073,1258.9,1258.7,4.2779486]
[1672878032066,3.0073,1258.9,1258.7,1.7779486]
[1672878032903,3.0073,1258.9,1258.7,4.2779486]
[1672878033948,3.0073,1258.9,1258.7,4.27405424]
[1672878035421,3.0073,1258.9,1258.8,2.5]
[1672878036693,1.1814,1259.2,1258.8,2.5]
[1672878036903,3.0073,1258.9,1258.8,2.5]
[1672878037313,3.0073,1258.9,1258.7,4.27405424]
[1672878037845,1.1814,1259.2,1258.7,4.27405424]
[1672878038160,3.0073,1258.9,1258.8,2.5]
[1672878040676,1.1814,1259.2,1258.8,2.5]
[1672878040884,3.0073,1258.9,1258.8,2.5]
[1672878041834,3.0073,1258.9,1258.7,4.27405424]
[1672878046891,3.0073,1258.9,1258.7,2.5]
[1672878048678,3.0073,1258.8,1258.7,2.5]
[1672878049628,3.0073,1258.8,1258.7,4.83464016]
[1672878049836,3.0073,1258.8,1258.7,2.5]
[1672878050361,3.0073,1259.0,1258.7,2.5]
[1672878050567,3.0073,1259.0,1258.7,4.83464016]
[1672878054354,3.0073,1259.0,1258.7,12.79364016]
[1672878056567,3.0073,1258.8,1258.7,2.5]
[1672878056766,3.0073,1258.8,1258.6,12.79364016]
[1672878058657,3.0073,1258.8,1258.6,2.33464016]
[1672878058874,1.5,1258.7,1258.6,2.33464016]
[1672878059294,1.5,1258.7,1258.6,2.5]
[1672878060132,1.5,1258.7,1258.5,7.80651138]
[1672878060343,1.5,1258.7,1258.5,4.83464016]
[1672878060559,3.0073,1258.6,1258.5,4.83464016]
[1672878060874,3.0073,1258.6,1258.5,6.24293671]
[1672878061399,3.0073,1258.6,1258.5,9.21480793]
[1672878062032,3.0073,1258.6,1258.5,6.88016777]
[1672878062452,3.0073,1258.6,1258.5,9.25168649]
[1672878062653,3.0073,1258.6,1258.5,6.75168649]
[1672878062863,3.0073,1258.6,1258.5,3.77981527]
[1672878063184,3.00032317,1258.6,1258.5,6.27981527]
[1672878064650,3.00032317,1258.6,1258.5,3.77981527]
[1672878066654,3.00032317,1258.6,1258.5,4.87151872]
[1672878066966,3.00032317,1258.6,1258.5,6.27985507]
[1672878067178,3.00032317,1258.6,1258.5,3.77985507]
[1672878068330,3.00032317,1258.6,1258.5,6.27985507]
[1672878068647,3.0073,1258.8,1258.5,6.88020757]
[1672878068859,3.0073,1258.8,1258.7,2.5]
[1672878069482,3.0073,1258.8,1258.6,4.87121529]
[1672878071058,1.5,1258.7,1258.6,4.87121529]
[1672878071268,1.5,1258.7,1258.6,2.37121529]
[1672878071900,1.5,1258.7,1258.5,7.84308651]
[1672878072745,1.5,1258.7,1258.6,2.37121529]
[1672878072955,1.5,1258.7,1258.6,4.87121529]
[1672878073166,1.5,1258.7,1258.6,2.5]
[1672878073693,1.5,1258.7,1258.6,4.87121529]
[1672878073900,3.0073,1258.8,1258.6,4.87121529]
[1672878074957,3.0073,1258.8,1258.7,1.18551611]
[1672878075378,3.0073,1258.8,1258.6,4.87121529]
[1672878075692,3.6814,1259.1,1258.6,4.87121529]
[1672878075693,3.0073,1259.0,1258.7,2.37121529]
[1672878075901,2.5,1258.9,1258.8,3.68521554]
[1672878076103,2.5,1258.9,1258.8,3.68512422]
[1672878077048,3.0073,1259.0,1258.8,3.68512422]
[1672878077262,3.0073,1259.0,1258.9,1.18512422]
[1672878077468,3.0073,1259.0,1258.8,3.68512422]
[1672878077781,3.0073,1259.0,1258.9,1.18512422]
[1672878080744,2.5,1259.1,1258.9,1.18512422]
[1672878080947,5.5073,1259.1,1258.9,1.18512422]
[1672878082949,3.0073,1259.0,1258.9,1.18512422]
[1672878083573,3.0073,1259.0,1258.8,1.18512422]
[1672878083784,2.5,1258.9,1258.8,1.18512422]
[1672878084421,2.5,1258.9,1258.8,3.68512422]
[1672878084631,2.5,1258.9,1258.8,1.18512422]
[1672878085475,3.0073,1259.0,1258.8,3.68512422]
[1672878085679,2.5,1259.1,1258.8,3.68512422]
[1672878085894,2.5,1259.1,1258.9,1.18512422]
[1672878087684,3.0073,1259.0,1258.8,1.18512422]
[1672878087992,2.5,1258.9,1258.8,1.18512422]
[1672878091670,5.5073,1258.9,1258.8,1.18512422]
[1672878092512,5.5073,1258.9,1258.7,1.18512422]
[1672878093040,5.5073,1258.9,1258.7,3.68512422]
[1672878093367,5.5073,1258.9,1258.7,1.18512422]
[1672878093675,3.0073,1258.8,1258.7,3.68512422]
[1672878093884,3.0073,1258.8,1258.6,10.33021529]
[1672878094197,3.0073,1258.8,1258.7,1.77799743]
[1672878094409,3.0073,1258.8,1258.7,2.96336913]
[1672878095250,3.0073,1258.8,1258.7,1.1853717]
[1672878097351,1.5,1258.7,1258.6,2.96336913]
[1672878098405,4.5073,1258.7,1258.6,2.96336913]
[1672878100299,4.5073,1258.7,1258.6,1.77799743]
[1672878100499,4.5073,1258.7,1258.6,2.96358]
[1672878101130,4.5073,1258.7,1258.6,2.96360185]
[1672878101549,4.5073,1258.7,1258.6,1.77799743]
[1672878101756,4.5073,1258.7,1258.6,2.9634098]
[1672878102606,4.5073,1258.7,1258.5,1.18541237]
[1672878103764,1.5,1258.7,1258.6,1.18541237]
[1672878104291,1.5,1258.7,1258.5,2.9634098]
[1672878104504,3.0073,1258.6,1258.5,2.9634098]
[1672878105552,1.5,1258.7,1258.5,2.9634098]
[1672878105764,3.0073,1258.6,1258.5,1.18541237]
[1672878105977,3.0073,1258.6,1258.5,2.9634098]
[1672878106284,1.5,1258.7,1258.5,2.9634098]
[1672878106499,3.0073,1258.6,1258.5,2.96337612]
[1672878106711,1.5,1258.7,1258.5,1.77799743]
[1672878106922,1.5,1258.7,1258.6,1.18526623]
[1672878107132,1.5,1258.7,1258.6,3.68526623]
[1672878107345,1.5,1258.7,1258.6,1.18526623]
[1672878108705,1.5,1258.7,1258.5,2.96326366]
[1672878108917,3.0073,1258.6,1258.5,2.96326366]
[1672878109761,3.0073,1258.6,1258.5,1.18526623]
[1672878113120,3.0073,1258.6,1258.5,2.96326366]
[1672878113860,3.0073,1258.6,1258.5,1.18526623]
[1672878114289,3.0073,1258.6,1258.5,2.96326366]
[1672878114502,3.0073,1258.6,1258.5,1.18526623]
[1672878115969,1.5,1258.7,1258.5,1.18526623]
[1672878116289,3.0073,1258.6,1258.5,1.18526623]
[1672878120493,3.0073,1258.6,1258.5,2.96326366]
[1672878121332,3.0073,1258.6,1258.5,1.18526623]
[1672878121544,3.0073,1258.6,1258.5,2.96326366]
[1672878122067,3.0073,1258.6,1258.5,1.18526623]
[1672878122910,2.5,1258.5,1258.4,1.18526623]
[1672878123120,2.5,1258.5,1258.4,2.96326366]
[1672878123324,2.5,1258.5,1258.4,1.18526623]
[1672878124479,2.5,1258.5,1258.4,2.96326366]
[1672878124801,2.5,1258.5,1258.4,1.18526623]
[1672878125867,2.5,1258.5,1258.4,2.96326366]
[1672878126061,2.5,1258.5,1258.4,1.77799743]
[1672878126802,3.0073,1258.6,1258.4,1.77799743]
[1672878127005,3.0073,1258.6,1258.5,1.18579061]
[1672878127211,3.0073,1258.6,1258.5,3.68579061]
[1672878127955,3.0073,1258.6,1258.5,2.96378804]
[1672878128165,3.0073,1258.6,1258.5,1.18579061]
[1672878130688,3.0073,1258.6,1258.5,2.96378804]
[1672878131319,3.0073,1258.6,1258.5,1.18579061]
[1672878132363,3.0073,1258.6,1258.5,1.18207264]
[1672878135836,1.5,1258.7,1258.5,1.18207264]
[1672878136150,3.0073,1258.6,1258.5,1.18207264]
[1672878136881,3.0073,1258.6,1258.5,2.96007007]
[1672878137092,3.0073,1258.6,1258.5,1.18207264]
[1672878141615,3.0073,1258.6,1258.5,2.96007007]
[1672878141928,3.0073,1258.6,1258.5,1.18207264]
[1672878142348,3.0073,1258.6,1258.5,2.96007007]
[1672878142553,3.0073,1258.6,1258.5,1.18207264]
[1672878142770,3.0073,1258.6,1258.5,2.96007007]
[1672878143402,3.0073,1258.6,1258.5,1.77799743]
[1672878151162,3.0073,1258.6,1258.5,1.13351482]
[1672878151374,1.777,1258.5,1258.2,5.34308651]
[1672878151589,3.0073,1258.3,1258.2,2.37121529]
[1672878151905,3.0073,1258.3,1258.2,4.87121529]
[1672878152115,3.0073,1258.3,1258.2,3.77991386]
[1672878152325,3.0073,1258.3,1258.2,2.37121529]
[1672878154846,5.2843,1258.5,1258.2,2.37121529]
[1672878155062,5.2843,1258.5,1258.2,3.77986385]
[1672878156103,5.2843,1258.5,1258.2,4.87121529]
[1672878156530,5.2843,1258.5,1258.2,2.37121529]
[1672878156741,3.0073,1258.3,1258.2,4.87121529]
[1672878156953,3.0073,1258.3,1258.2,2.37121529]
[1672878157479,2.277,1258.5,1258.2,2.37121529]
[1672878157681,3.0073,1258.3,1258.2,2.37121529]
[1672878160536,2.277,1258.5,1258.2,2.37121529]
[1672878160844,2.5,1258.3,1258.2,2.37121529]
[1672878161579,5.5073,1258.3,1258.2,2.37121529]
[1672878162954,2.5,1258.3,1258.2,2.37121529]
[1672878163162,5.5073,1258.3,1258.2,2.37121529]
[1672878165265,5.5073,1258.3,1258.1,13.30208651]
[1672878166212,5.5073,1258.3,1258.2,2.37121529]
[1672878166414,5.5073,1258.3,1258.2,4.87121529]
[1672878166730,5.5073,1258.3,1258.2,2.37121529]
[1672878167679,2.5,1258.3,1258.2,2.37121529]
[1672878172830,3.0073,1258.4,1258.2,2.37121529]
[1672878173036,2.5,1258.3,1258.1,3.77991363]
[1672878173247,3.0073,1258.2,1258.1,2.37121529]
[1672878174397,3.0073,1258.2,1258.1,3.77998009]
[1672878174926,3.0073,1258.2,1258.1,2.37121529]
[1672878176081,3.0073,1258.2,1258.0,2.37121529]
[1672878176400,3.0073,1258.2,1258.0,4.87121529]
[1672878178816,3.0073,1258.1,1258.0,4.87121529]
[1672878179018,3.0073,1258.1,1258.0,3.78007897]
[1672878179225,3.0073,1258.1,1258.0,2.37121529]
[1672878179438,3.0073,1258.1,1258.0,6.28007405]
[1672878179656,5.5073,1258.3,1258.0,6.75194527]
[1672878179858,5.5073,1258.3,1258.1,2.5]
[1672878180593,5.5073,1258.3,1258.1,4.87121529]
[1672878181336,5.5073,1258.3,1258.1,2.37121529]
[1672878181649,5.5073,1258.3,1258.0,4.87121529]
[1672878182699,5.5073,1258.3,1258.1,2.5]
[1672878183114,5.5073,1258.3,1258.1,4.87121529]
[1672878183745,5.5073,1258.3,1258.1,2.5]
[1672878183955,5.5073,1258.3,1258.1,4.87121529]
[1672878186486,3.0073,1258.2,1258.1,4.87121529]
[1672878186804,3.0073,1258.2,1258.1,2.37121529]
[1672878189425,3.0073,1258.2,1258.1,3.78002618]
[1672878192158,3.0073,1258.2,1258.1,2.37121529]
[1672878192362,3.0073,1258.2,1258.0,2.37121529]
[1672878192576,3.0073,1258.2,1257.9,2.37121529]
[1672878192785,3.0073,1258.0,1257.9,2.37121529]
[1672878193418,3.0073,1258.0,1257.7,2.37121529]
[1672878193625,2.5,1257.7,1257.6,2.37121529]
[1672878194460,2.5,1257.7,1257.6,5.34308651]
[1672878194682,2.5,1257.7,1257.6,1.40930013]
[1672878194883,2.5,1257.7,1257.6,2.97187122]
[1672878195089,2.5,1257.7,1257.6,5.47187122]
[1672878195407,2.5,1257.7,1257.6,2.3750426]
[1672878195619,2.5,1257.7,1257.6,3.78429318]
[1672878195935,2.5,1257.7,1257.6,3.78430378]
[1672878196252,2.5,1257.7,1257.6,2.3750426]
[1672878196668,2.5,1257.7,1257.6,3.78432262]
[1672878197089,2.5,1257.7,1257.6,2.3750426]
[1672878197300,2.5,1257.7,1257.5,7.84691382]
[1672878197509,2.5,1257.7,1257.5,4.8750426]
[1672878198254,2.5,1257.7,1257.5,2.3750426]
[1672878198463,2.5,1257.7,1257.5,3.7843586]
[1672878198670,5.5073,1257.7,1257.5,3.7843586]
[1672878199296,5.5073,1257.7,1257.5,6.75622982]
[1672878199620,5.5073,1257.7,1257.4,5.34691382]
[1672878199821,5.5073,1257.7,1257.4,6.75629705]
[1672878200451,5.5073,1257.7,1257.4,5.34691382]
[1672878200660,5.5073,1257.7,1257.6,2.5]
[1672878201091,5.5073,1257.7,1257.5,2.5]
[1672878201711,5.5073,1257.7,1257.4,7.84691382]
[1672878201931,5.5073,1257.7,1257.4,4.8750426]
[1672878202354,5.5073,1257.7,1257.4,9.25626112]
[1672878202669,5.5073,1257.7,1257.4,7.84691382]
[1672878203192,5.5073,1257.7,1257.4,4.8750426]
[1672878204979,5.5073,1257.7,1257.5,2.5]
[1672878206343,5.5073,1257.7,1257.4,12.8220426]
[1672878209916,3.0073,1257.7,1257.5,2.5]
[1672878211282,3.0073,1257.7,1257.5,4.27714061]
[1672878211702,3.0073,1257.7,1257.5,6.65218321]
[1672878211922,3.0073,1257.7,1257.5,4.27714061]
[1672878212120,3.0073,1257.7,1257.5,6.65218321]
[1672878212333,3.0073,1257.7,1257.5,12.22414061]
[1672878213702,3.0073,1257.7,1257.5,14.59918321]
[1672878213910,3.0073,1257.7,1257.5,12.22414061]
[1672878214443,3.0073,1257.9,1257.6,9.72414061]
[1672878214649,3.0073,1257.9,1257.6,12.09918321]
[1672878214967,2.5,1258.0,1257.7,12.22414061]
[1672878215176,2.5,1258.0,1257.8,2.5]
[1672878215388,2.5,1258.0,1257.7,12.22414061]
[1672878215598,3.0073,1257.9,1257.7,10.447]
[1672878215801,3.0073,1257.9,1257.7,2.5]
[1672878216751,3.0073,1257.9,1257.6,12.22414061]
[1672878218856,3.0073,1257.9,1257.7,2.5]
[1672878220010,3.0073,1257.9,1257.6,4.27714061]
[1672878220744,3.0073,1257.9,1257.6,1.77714061]
[1672878222006,3.0073,1257.7,1257.6,1.77714061]
[1672878222218,3.0073,1257.7,1257.5,6.65218321]
[1672878223170,3.0073,1257.7,1257.6,1.77714061]
[1672878225158,2.5,1258.0,1257.6,1.77714061]
[1672878225371,3.0073,1257.9,1257.7,2.5]
[1672878225786,3.0073,1257.9,1257.7,4.28001648]
[1672878228421,3.0073,1257.9,1257.7,6.65505908]
[1672878229050,3.0073,1257.9,1257.8,1.78001648]
[1672878229251,3.0073,1257.9,1257.7,6.65505908]
[1672878229789,3.0073,1257.9,1257.8,1.78001648]
[1672878230101,3.0073,1257.9,1257.8,1.77796699]
[1672878230307,3.0073,1257.9,1257.7,6.65300959]
[1672878230520,3.0073,1257.9,1257.7,4.27796699]
[1672878230834,3.0073,1257.9,1257.7,1.77796699]
[1672878231252,3.0073,1257.9,1257.7,4.15300959]
[1672878232200,3.0073,1257.9,1257.7,1.77796699]
[1672878236725,3.0073,1257.9,1257.7,4.15300959]
[1672878236937,3.0073,1257.9,1257.7,1.77796699]
[1672878237464,3.0073,1257.9,1257.7,2.3750426]
[1672878239146,2.5,1258.0,1257.7,2.3750426]
[1672878239361,3.0073,1257.8,1257.7,2.3750426]
[1672878240821,2.5,1258.0,1257.7,2.3750426]
[1672878241035,3.0073,1257.8,1257.7,2.3750426]
[1672878241240,2.5,1258.0,1257.7,2.3750426]
[1672878241458,3.0073,1257.8,1257.7,2.3750426]
[1672878241987,2.5,1258.0,1257.7,2.3750426]
[1672878242194,3.0073,1257.8,1257.7,2.3750426]
[1672878242715,3.0073,1257.8,1257.6,2.3750426]
[1672878243978,3.0073,1257.8,1257.4,2.38089063]
[1672878243979,1.1814,1257.7,1257.4,2.38089063]
[1672878244191,3.0073,1257.6,1257.4,2.38089063]
[1672878244403,2.5,1257.5,1257.4,2.38089063]
[1672878244814,2.5,1257.5,1257.3,2.38089063]
[1672878245024,2.5,1257.5,1257.3,3.79053375]
[1672878245772,2.5,1257.5,1257.3,6.76240497]
[1672878246405,2.5,1257.5,1257.4,2.38089063]
[1672878246929,2.5,1257.5,1257.3,5.35276185]
[1672878247144,2.5,1257.5,1257.3,6.76235957]
[1672878248612,2.5,1257.5,1257.3,5.35276185]
[1672878248820,2.5,1257.5,1257.3,6.7623403]
[1672878249553,2.5,1257.5,1257.4,2.5]
[1672878249763,3.5073,1257.6,1257.4,2.5]
[1672878249764,3.5073,1257.6,1257.4,4.88089063]
[1672878250184,3.5073,1257.6,1257.4,2.5]
[1672878250398,3.5073,1257.6,1257.4,4.88089063]
[1672878250819,3.5073,1257.6,1257.4,2.5]
[1672878251032,0.5,1257.6,1257.4,2.5]
[1672878251242,3.0073,1257.5,1257.4,2.5]
[1672878251554,3.0073,1257.5,1257.3,5.35276185]
[1672878251764,3.0073,1257.5,1257.3,6.76231572]
[1672878251972,3.0073,1257.5,1257.4,4.88089063]
[1672878253653,3.0073,1257.5,1257.4,2.5]
[1672878254604,3.0073,1257.5,1257.3,5.35276185]
[1672878254812,3.0073,1257.5,1257.3,6.76230284]
[1672878255027,3.0073,1257.5,1257.4,4.88089063]
[1672878255863,3.5073,1257.6,1257.4,4.88089063]
[1672878256181,3.5073,1257.6,1257.5,1.18845622]
[1672878257972,3.5073,1257.6,1257.4,1.18845622]
[1672878259858,3.5073,1257.6,1257.3,1.18845622]
[1672878260067,3.0073,1257.4,1257.3,1.18845622]
[1672878270048,0.5,1257.6,1257.3,1.18845622]
[1672878270259,3.0073,1257.4,1257.3,1.18845622]
[1672878271522,3.0073,1257.4,1257.2,2.38089063]
[1672878271837,3.0073,1257.4,1257.2,3.79055619]
[1672878272048,3.0073,1257.4,1257.2,6.76242741]
[1672878272251,3.0073,1257.4,1257.2,5.35276185]
[1672878272782,3.0073,1257.4,1257.3,2.5]
[1672878273205,3.0073,1257.4,1257.3,4.88089063]
[1672878274676,3.0073,1257.4,1257.3,2.5]
[1672878274881,3.0073,1257.4,1257.3,4.88089063]
[1672878275935,3.0073,1257.4,1257.3,2.38089063]
[1672878277614,3.0073,1257.4,1257.3,3.7905243]
[1672878277829,3.0073,1257.5,1257.3,3.7905243]
[1672878278040,2.5,1257.4,1257.3,3.7905243]
[1672878282871,2.5,1257.4,1257.3,5.35276185]
[1672878283507,2.5,1257.4,1257.3,2.38089063]
[1672878284860,2.5,1257.4,1257.3,5.35276185]
[1672878285075,3.0073,1257.5,1257.3,5.35276185]